bitfinex-derivatives/quotes_ETHF0:USTF0_20250125
["timestamp","ask_amount","ask_price","bid_price","bid_amount"]
[1737768293452,4.0384,3303.2,3302.5,1.75369]
[1737768293758,0.48447,3302.7,3302.6,1.2403]
[1737768294150,4.0384,3303.2,3302.6,3.58426093]
[1737768294349,3.2078,3303.2,3302.7,3.2078]
[1737768294555,3.69209,3304.0,3303.6,0.48433]
[1737768294755,3.69209,3304.0,3303.1,3.2078]
[1737768294756,0.48431,3303.9,3303.8,2.34396093]
[1737768294955,3.69209,3304.0,3303.8,2.34396093]
[1737768295156,2.34396093,3305.4,3303.8,2.34396093]
[1737768295364,0.48427,3304.1,3303.9,3.56116093]
[1737768296061,0.48431,3303.8,3303.7,0.00454525]
[1737768301060,1.1715,3304.1,3303.7,0.00454525]
[1737768301267,0.48431,3303.8,3303.7,0.00454525]
[1737768302868,3.69211,3303.8,3303.7,0.00454525]
[1737768303260,12.09315716,3303.8,3302.8,1.2768]
[1737768303561,3.2078,3303.3,3302.7,2.34396093]
[1737768303865,0.48449,3302.6,3302.5,1.2761]
[1737768304068,0.48452,3302.4,3302.3,3.2078]
[1737768304262,0.48452,3302.4,3302.1,2.34396093]
[1737768304263,3.2078,3302.8,3302.1,2.34396093]
[1737768304467,0.48451,3302.5,3302.1,2.34396093]
[1737768304665,3.2078,3302.8,3302.1,2.34396093]
[1737768304666,0.48454,3302.2,3302.1,2.34396093]
[1737768304864,3.2078,3302.3,3302.0,5.25e-06]
[1737768305169,0.48466,3301.4,3301.3,4.00538955]
[1737768305557,4.39290339,3301.4,3301.3,2.15867955]
[1737768306259,3.90824339,3301.4,3301.3,2.15867955]
[1737768306462,0.48466,3301.5,3301.3,2.15867955]
[1737768306968,0.48466,3301.4,3301.3,2.15867955]
[1737768307467,0.48466,3301.5,3301.3,2.15867955]
[1737768307669,0.48466,3301.4,3301.3,2.15867955]
[1737768308069,0.48466,3301.4,3301.0,3.21234525]
[1737768308472,0.48469,3301.3,3301.0,3.21234525]
[1737768308972,3.69251,3301.1,3301.0,0.00454525]
[1737768311868,3.69251,3301.1,3300.3,1.2865]
[1737768311869,7.15696867,3301.1,3300.3,1.2865]
[1737768312171,0.4848,3300.5,3300.0,2.34396093]
[1737768312474,0.48483,3300.3,3300.0,2.34396093]
[1737768312666,0.48483,3300.3,3299.9,3.2078]
[1737768312973,3.2078,3300.7,3299.9,3.2078]
[1737768313174,0.48483,3300.3,3299.9,3.2078]
[1737768313369,3.85175751,3300.6,3299.9,3.2078]
[1737768313770,0.48481,3300.4,3299.9,3.2078]
[1737768314566,3.85175751,3300.6,3299.9,3.2078]
[1737768314773,3.2078,3300.7,3300.0,2.34396093]
[1737768315073,0.4848,3300.5,3300.0,2.34396093]
[1737768315580,0.48481,3300.4,3300.0,2.34396093]
[1737768316470,0.48485,3300.2,3299.9,3.2078]
[1737768316673,3.2078,3300.7,3299.9,3.2078]
[1737768316871,0.48485,3300.2,3299.9,3.2078]
[1737768318269,3.98762436,3300.6,3299.9,3.2078]
[1737768318473,0.48483,3300.3,3299.9,3.2078]
[1737768318773,0.48484,3300.2,3299.9,3.2078]
[1737768319067,0.48487,3300.1,3299.9,3.2078]
[1737768319778,0.48484,3300.2,3299.9,3.2078]
[1737768320764,3.2078,3300.3,3299.8,1.23494525]
[1737768321074,0.48488,3299.9,3299.8,1.23494525]
[1737768321463,3.93357773,3300.2,3299.8,1.23494525]
[1737768321665,3.2078,3300.7,3299.9,3.2078]
[1737768321966,3.2078,3300.7,3300.0,0.48487]
[1737768321967,0.4848,3300.5,3300.0,0.48487]
[1737768322367,3.2078,3300.7,3299.9,3.2078]
[1737768322572,3.2078,3300.7,3300.0,2.34396093]
[1737768322876,3.69257,3300.7,3300.2,0.48483]
[1737768323066,3.69257,3300.7,3300.0,2.34396093]
[1737768323067,3.2078,3300.7,3300.3,1.284]
[1737768323568,3.2078,3301.1,3300.4,1.3039]
[1737768323970,0.48471,3301.1,3300.6,0.48478]
[1737768324168,3.2078,3301.5,3300.7,1.2021]
[1737768324374,0.48469,3301.2,3300.7,1.2021]
[1737768324574,0.48473,3301.0,3300.7,1.2021]
[1737768324772,0.48474,3300.9,3300.7,1.2021]
[1737768326177,0.48475,3300.8,3300.7,1.2021]
[1737768326371,0.48487,3300.0,3299.8,0.00454525]
[1737768327179,3.2078,3300.3,3299.8,0.00454525]
[1737768327373,0.48488,3299.9,3299.8,0.00454525]
[1737768329079,7.09257971,3299.9,3298.8,3.2078]
[1737768329386,0.48502,3299.0,3298.8,5.5692]
[1737768329874,0.48494,3299.5,3298.8,5.5692]
[1737768330078,0.48501,3299.1,3298.8,5.5692]
[1737768330273,0.48949525,3299.5,3298.8,7.91770618]
[1737768330472,0.48949525,3299.5,3299.2,3.2078]
[1737768330666,0.00454525,3299.5,3299.2,3.69278]
[1737768330871,0.48949525,3299.5,3299.2,3.2078]
[1737768331070,0.00454525,3299.5,3299.2,3.2078]
[1737768331277,0.48948525,3299.5,3299.2,3.2078]
[1737768331573,0.00454525,3299.5,3299.2,3.2078]
[1737768331783,0.48949525,3299.5,3299.2,3.2078]
[1737768332572,0.00454525,3299.5,3299.2,3.2078]
[1737768332778,3.69269,3299.9,3299.4,0.48496]
[1737768332975,3.69269,3299.9,3299.5,1.2893]
[1737768333279,3.2078,3299.9,3299.5,2.5094]
[1737768333480,0.48493,3299.6,3299.5,2.5094]
[1737768335174,3.21234525,3299.9,3299.5,2.5094]
[1737768335375,0.48492,3299.7,3299.5,2.5094]
[1737768335680,0.48493,3299.6,3299.5,2.5094]
[1737768336476,0.48492,3299.7,3299.5,2.5094]
[1737768336979,0.00454525,3299.9,3299.6,0.48492]
[1737768337185,0.00454525,3299.9,3299.7,0.4849]
[1737768337380,3.2078,3300.3,3299.8,0.4849]
[1737768337686,3.2078,3300.3,3300.0,0.48486]
[1737768338086,3.2078,3300.3,3300.1,1.2692]
[1737768338977,3.69263,3300.3,3300.1,1.2692]
[1737768340691,3.69263,3300.3,3300.2,1.1989]
[1737768341874,0.48483,3300.3,3300.2,1.1989]
[1737768343787,0.00454525,3300.5,3300.2,1.1989]
[1737768344096,0.48481,3300.4,3300.2,1.1989]
[1737768345186,0.48481,3300.4,3300.2,2.4312]
[1737768345588,0.48482,3300.3,3300.2,2.4312]
[1737768346289,0.48482,3300.4,3300.2,2.4312]
[1737768347688,0.00454525,3300.5,3300.2,2.4312]
[1737768347886,0.48482,3300.3,3300.2,2.4312]
[1737768348086,0.00454525,3300.5,3300.2,2.4312]
[1737768348385,0.48482,3300.4,3300.2,2.4312]
[1737768348795,0.48482,3300.3,3300.2,2.4312]
[1737768351285,0.48482,3300.3,3300.2,1.1989]
[1737768351592,0.48483,3300.3,3300.0,3.69267]
[1737768351794,0.48483,3300.3,3300.1,1.1358]
[1737768351996,0.48483,3300.3,3300.1,2.3209]
[1737768352389,0.00454525,3300.5,3300.1,2.3209]
[1737768352690,0.48934525,3300.5,3300.2,1.53303]
[1737768355293,0.00454525,3300.5,3300.2,1.53303]
[1737768355691,0.48934525,3300.5,3300.2,1.0482]
[1737768355885,0.48481,3300.4,3300.2,1.0482]
[1737768356689,2.34850618,3300.5,3300.1,2.3209]
[1737768356886,0.48484,3300.2,3300.1,1.1358]
[1737768357290,3.2078,3300.4,3299.6,3.2078]
[1737768357291,0.48489,3299.9,3299.6,3.2078]
[1737768357493,0.48489,3299.9,3299.7,1.0569]
[1737768357705,3.2078,3300.4,3299.7,1.0569]
[1737768357997,0.4849,3299.8,3299.7,1.0569]
[1737768358988,0.48493,3299.6,3299.5,1.0393]
[1737768360498,0.48497,3299.3,3299.2,2.2287]
[1737768361693,0.485,3299.1,3299.0,1.0891]
[1737768363098,5.55176093,3299.6,3299.0,1.0891]
[1737768363299,0.48498,3299.3,3299.1,1.1145]
[1737768363498,0.48492,3299.7,3299.3,0.48496]
[1737768363898,3.2078,3300.0,3299.2,3.2078]
[1737768364095,0.48493,3299.6,3299.2,3.69278]
[1737768365900,3.2078,3300.0,3299.8,0.48489]
[1737768366098,3.2078,3300.0,3299.9,3.2841]
[1737768366301,3.69267,3300.0,3299.9,3.2841]
[1737768366694,0.48487,3300.0,3299.9,3.2841]
[1737768367097,2.34396093,3300.2,3299.2,3.2078]
[1737768367297,2.34396093,3300.2,3299.3,1.0798]
[1737768367298,0.48494,3299.6,3299.3,1.0798]
[1737768367494,0.48496,3299.4,3299.3,1.0798]
[1737768367896,2.34396093,3299.9,3299.3,4.2876]
[1737768368210,0.48934525,3300.5,3299.8,0.48489]
[1737768368403,0.48934525,3300.5,3300.1,3.69265]
[1737768368404,0.00454525,3300.5,3300.1,3.69265]
[1737768368603,0.00454525,3300.5,3300.2,1.0798]
[1737768371501,0.00454525,3300.5,3300.3,2.34396093]
[1737768371709,0.48471,3301.1,3300.4,0.48481]
[1737768371902,0.48471,3301.1,3300.6,3.2078]
[1737768372107,0.48473,3301.0,3300.7,1.1108]
[1737768372306,0.48472,3301.1,3300.7,2.156]
[1737768372606,3.92649857,3301.4,3300.7,2.156]
[1737768372809,0.48474,3300.9,3300.7,2.156]
[1737768373805,0.00454525,3301.2,3300.6,0.00454525]
[1737768373806,3.2078,3301.1,3300.6,0.00454525]
[1737768374009,0.48476,3300.7,3300.6,0.00454525]
[1737768375406,0.00454525,3301.2,3300.6,3.21234525]
[1737768375911,0.48924525,3301.2,3300.6,0.48931525]
[1737768376114,0.00454525,3301.2,3300.6,0.48931525]
[1737768376610,0.48474,3300.9,3300.6,0.00454525]
[1737768376809,0.48475,3300.8,3300.6,0.00454525]
[1737768377010,0.00454525,3301.2,3300.6,0.00454525]
[1737768377214,3.2078,3301.1,3300.6,0.00454525]
[1737768377507,3.95631334,3301.1,3301.0,3.2078]
[1737768377714,0.00454525,3301.2,3300.6,3.21234525]
[1737768378010,0.48471,3301.1,3300.6,3.21234525]
[1737768378712,0.00454525,3301.2,3300.6,3.69711525]
[1737768380805,0.48924525,3301.2,3300.6,3.69711525]
[1737768381709,0.48924525,3301.2,3300.6,3.21234525]
[1737768381913,0.48471,3301.1,3300.6,3.21234525]
[1737768383013,0.48924525,3301.2,3300.6,3.21234525]
[1737768383811,0.00454525,3301.2,3300.6,3.21234525]
[1737768384007,0.48472,3301.0,3300.6,3.21234525]
[1737768386717,0.00454525,3301.2,3300.6,3.21234525]
[1737768386918,0.48475,3300.9,3300.6,3.21234525]
[1737768387320,0.00454525,3301.2,3300.6,3.21234525]
[1737768387519,0.48476,3300.7,3300.6,0.00454525]
[1737768387817,5.55630618,3301.2,3300.7,0.48475]
[1737768387818,3.85583598,3301.1,3300.7,0.48475]
[1737768388010,0.00454525,3301.2,3301.0,3.2078]
[1737768388215,0.00454525,3301.2,3301.1,2.2046]
[1737768388622,0.48463,3301.7,3301.1,2.68931]
[1737768388822,0.48463,3301.7,3301.1,2.6893]
[1737768389021,0.48463,3301.7,3301.1,2.2046]
[1737768389319,0.48463,3301.7,3301.4,3.2078]
[1737768389713,0.48465,3301.5,3301.4,3.2078]
[1737768389913,0.48469,3301.2,3301.1,2.2046]
[1737768391116,0.48465,3301.6,3301.1,2.2046]
[1737768391322,0.48465,3301.5,3301.2,3.2078]
[1737768391514,0.48464,3301.6,3301.2,3.2078]
[1737768392117,0.48466,3301.5,3301.2,3.2078]
[1737768392630,3.88625685,3301.8,3301.2,3.2078]
[1737768392920,2.34396093,3302.1,3301.2,3.2078]
[1737768393126,0.48463,3301.6,3301.2,3.2078]
[1737768393317,3.8707473,3302.0,3301.2,5.55176093]
[1737768393512,0.48456,3302.2,3301.6,3.2078]
[1737768393712,0.48456,3302.2,3301.7,1.1277]
[1737768393916,0.48456,3302.2,3301.8,2.1925]
[1737768394322,0.48457,3302.1,3301.8,2.1925]
[1737768396923,3.9137162,3302.6,3302.0,3.2078]
[1737768397116,3.2078,3303.2,3302.4,3.2078]
[1737768397314,2.34396093,3303.6,3302.8,3.2078]
[1737768397517,0.4844,3303.2,3302.8,3.2078]
[1737768398623,0.48437,3303.4,3302.8,3.2078]
[1737768398823,0.4844,3303.2,3302.8,3.2078]
[1737768399426,2.34396093,3303.6,3302.8,3.2078]
[1737768399626,0.48435,3303.5,3302.8,3.2078]
[1737768399821,4.46977236,3303.5,3302.8,3.2078]
[1737768400017,0.48437,3303.4,3302.8,3.2078]
[1737768400619,0.48438,3303.4,3302.8,3.2078]
[1737768401217,2.34396093,3303.6,3302.8,3.2078]
[1737768401525,0.48436,3303.5,3302.8,3.2078]
[1737768402031,2.34396093,3303.6,3302.8,3.2078]
[1737768402225,0.48436,3303.5,3302.8,3.2078]
[1737768402429,0.48438,3303.4,3302.8,3.2078]
[1737768403429,3.2078,3303.7,3302.8,3.2078]
[1737768403628,3.2078,3303.7,3303.0,2.34396093]
[1737768403831,3.2078,3303.7,3303.1,0.4844]
[1737768404133,3.2078,3303.7,3303.2,2.159]
[1737768405131,0.48434,3303.6,3303.2,2.159]
[1737768405329,3.69213,3303.7,3303.2,2.159]
[1737768405530,3.2078,3303.7,3303.2,2.159]
[1737768405735,3.2078,3304.2,3303.4,3.2078]
[1737768405925,3.2078,3303.7,3303.2,2.159]
[1737768406131,4.01412726,3303.6,3303.2,2.159]
[1737768406432,0.48435,3303.5,3303.2,2.159]
[1737768406633,0.48434,3303.6,3303.2,2.159]
[1737768406834,0.48436,3303.5,3303.2,2.159]
[1737768407138,3.2078,3303.7,3303.2,2.159]
[1737768407430,3.2078,3304.4,3303.4,3.2078]
[1737768407637,0.48428,3304.1,3303.4,3.2078]
[1737768408137,2.34396093,3304.2,3303.4,3.2078]
[1737768408331,2.34396093,3303.9,3303.2,2.159]
[1737768408536,0.48436,3303.5,3303.2,2.159]
[1737768409232,3.93711928,3303.8,3303.2,2.159]
[1737768409435,0.48432,3303.7,3303.2,2.159]
[1737768409627,0.48435,3303.6,3303.2,2.159]
[1737768409823,4.02567035,3303.6,3303.2,2.159]
[1737768410029,3.2078,3304.0,3303.5,3.2078]
[1737768410231,0.48428,3304.0,3303.5,3.2078]
[1737768411333,5.55176093,3304.5,3303.5,3.2078]
[1737768411529,0.48418,3304.8,3304.0,0.48428]
[1737768411724,0.48418,3304.8,3303.9,5.55176093]
[1737768411725,3.2078,3305.0,3304.1,3.75226]
[1737768411933,0.48415,3304.9,3304.3,3.2078]
[1737768413630,3.2078,3305.0,3304.5,2.34396093]
[1737768414037,3.2078,3305.0,3304.3,3.69203]
[1737768415043,0.48419,3304.7,3304.3,3.2078]
[1737768415626,3.2078,3305.0,3304.3,3.2078]
[1737768415830,0.48418,3304.8,3304.3,3.2078]
[1737768417142,3.2078,3305.0,3304.3,3.2078]
[1737768417331,0.4842,3304.6,3304.3,3.2078]
[1737768418040,0.48422,3304.4,3304.3,3.2078]
[1737768418335,0.4842,3304.6,3304.3,3.2078]
[1737768418636,3.93552887,3304.9,3304.3,3.2078]
[1737768418940,0.4842,3304.6,3304.3,3.2078]
[1737768419340,3.93552887,3304.9,3304.3,3.2078]
[1737768419642,3.93552887,3304.9,3304.2,0.00454525]
[1737768419643,0.48408,3305.4,3304.8,3.2078]
[1737768419839,0.48409,3305.3,3304.9,3.2987]
[1737768420937,0.48409,3305.4,3304.9,3.2987]
[1737768421241,3.95463014,3305.6,3304.9,3.2987]
[1737768421845,0.48408,3305.4,3304.9,3.2987]
[1737768422041,0.48407,3305.5,3304.9,3.2987]
[1737768422651,0.48409,3305.4,3304.9,3.2987]
[1737768423140,3.95463014,3305.6,3304.9,3.2987]
[1737768423438,3.2078,3305.7,3305.3,3.2078]
[1737768423642,3.69183,3305.7,3305.3,3.2078]
[1737768425039,0.48403,3305.7,3305.3,3.2078]
[1737768426237,0.48401,3305.9,3305.3,3.2078]
[1737768426539,0.48402,3305.8,3305.3,3.2078]
[1737768426738,0.48404,3305.7,3305.3,3.2078]
[1737768426939,0.48405,3305.6,3305.3,3.2078]
[1737768427139,0.48402,3305.8,3305.3,3.2078]
[1737768427344,0.48406,3305.6,3305.3,3.2078]
[1737768428648,0.48551087,3305.6,3305.3,3.2078]
[1737768429346,0.48406,3305.5,3305.3,3.2078]
[1737768429542,0.00145087,3305.6,3304.9,6.5065]
[1737768429847,0.48413,3305.0,3304.9,3.2987]
[1737768430036,0.4841,3305.2,3304.9,3.2987]
[1737768430234,0.48412,3305.1,3304.9,3.2987]
[1737768430838,0.48413,3305.0,3304.9,3.2987]
[1737768431047,0.48413,3305.1,3304.9,3.2987]
[1737768431250,3.2078,3305.3,3304.9,3.2987]
[1737768431444,0.4841,3305.2,3304.9,3.2987]
[1737768431644,0.48412,3305.1,3304.9,3.2987]
[1737768431944,3.2078,3305.3,3304.9,3.2987]
[1737768432648,0.48412,3305.2,3304.9,3.2987]
[1737768432849,3.2078,3305.3,3304.9,3.2987]
[1737768433046,0.48413,3305.0,3304.9,3.2987]
[1737768433636,0.48413,3305.0,3304.9,2.1572]
[1737768433840,0.48413,3305.0,3304.9,1.0687]
[1737768437538,3.2078,3305.3,3304.9,1.0687]
[1737768437739,3.2078,3305.3,3305.0,1.0885]
[1737768437936,0.48413,3305.0,3304.9,1.0687]
[1737768438141,2.34396093,3305.1,3304.6,2.1623]
[1737768438335,3.2078,3304.9,3304.3,1.082]
[1737768438636,0.48422,3304.4,3304.3,1.082]
[1737768439948,0.48424,3304.3,3304.2,0.00454525]
[1737768441150,4.39864836,3304.3,3304.2,0.00454525]
[1737768443548,4.39864836,3304.3,3304.2,5.25e-06]
[1737768443849,8.91440836,3304.3,3303.4,2.1436]
[1737768444050,8.91440836,3304.3,3302.7,6.03077074]
[1737768444051,0.48444,3303.0,3302.8,1.0539]
[1737768444240,0.48444,3303.0,3302.9,0.9889]
[1737768445645,0.4844,3303.2,3302.9,0.9889]
[1737768447160,0.48435,3303.5,3302.9,0.9889]
[1737768447344,3.2078,3303.1,3302.9,0.9889]
[1737768447550,3.2078,3303.1,3302.8,2.1221]
[1737768447551,0.48444,3302.9,3302.8,1.0539]
[1737768447953,0.48447,3302.7,3302.6,7.95e-06]
[1737768448160,6.03623093,3302.7,3302.6,7.95e-06]
[1737768448448,9.94600809,3302.7,3302.6,7.95e-06]
[1737768449848,10.95400809,3302.7,3302.6,7.95e-06]
[1737768450045,3.2078,3302.7,3302.6,7.95e-06]
[1737768450249,0.48446,3302.8,3302.6,7.95e-06]
[1737768450443,2.34396093,3303.0,3302.6,7.95e-06]
[1737768450646,3.2078,3303.1,3302.6,7.95e-06]
[1737768450955,4.01364296,3303.0,3302.6,7.95e-06]
[1737768451158,4.01364296,3303.0,3302.6,3.20780795]
[1737768451457,0.48445,3302.9,3302.6,3.20780795]
[1737768452052,2.34396093,3303.3,3302.6,3.20780795]
[1737768452757,0.48444,3303.0,3302.6,3.20780795]
[1737768453251,1.008,3303.4,3302.8,0.48445]
[1737768453252,0.48437,3303.4,3302.8,0.48445]
[1737768453459,0.48441,3303.2,3303.0,3.2078]
[1737768453656,0.48441,3303.2,3303.1,2.0437]
[1737768454156,4.50141477,3303.2,3302.6,7.95e-06]
[1737768454359,0.48447,3302.7,3302.6,7.95e-06]
[1737768455061,4.47072006,3302.7,3302.6,7.95e-06]
[1737768458460,0.48447,3302.7,3302.6,7.95e-06]
[1737768459661,4.36692513,3302.7,3302.6,7.95e-06]
[1737768460365,0.48447,3302.7,3302.6,7.95e-06]
[1737768463653,2.04867,3302.8,3302.6,7.95e-06]
[1737768464065,0.48447,3302.7,3302.6,7.95e-06]
[1737768464364,4.37577064,3302.7,3302.6,7.95e-06]
[1737768465664,6.36897064,3302.7,3302.6,7.95e-06]
[1737768465963,11.41769274,3302.7,3302.6,7.95e-06]
[1737768466465,11.36897064,3302.7,3302.6,7.95e-06]
[1737768466865,6.36897064,3302.7,3302.6,7.95e-06]
[1737768467871,11.41769319,3302.7,3302.6,7.95e-06]
[1737768468072,6.41769319,3302.7,3302.6,7.95e-06]
[1737768468374,11.36897064,3302.7,3302.6,7.95e-06]
[1737768468562,6.5983249,3302.7,3302.6,7.95e-06]
[1737768469971,6.36897064,3302.7,3302.6,7.95e-06]
[1737768470474,4.37577064,3302.7,3302.6,7.95e-06]
[1737768477377,5.36557064,3302.7,3302.6,7.95e-06]
[1737768477680,10.36557064,3302.7,3302.6,7.95e-06]
[1737768478371,10.41429388,3302.7,3302.6,7.95e-06]
[1737768479278,10.76406379,3302.7,3302.6,7.95e-06]
[1737768479578,10.76406441,3302.7,3302.6,7.95e-06]
[1737768480170,10.99531162,3302.7,3302.6,7.95e-06]
[1737768480475,11.37941401,3302.7,3302.6,7.95e-06]
[1737768480979,11.37941376,3302.7,3302.6,7.95e-06]
[1737768486184,11.37941411,3302.7,3302.6,7.95e-06]
[1737768486585,6.37941411,3302.7,3302.6,7.95e-06]
[1737768487375,6.37941397,3302.7,3302.6,7.95e-06]
[1737768487579,5.99531158,3302.7,3302.6,7.95e-06]
[1737768487982,5.99531151,3302.7,3302.6,7.95e-06]
[1737768488380,5.94658776,3302.7,3302.6,7.95e-06]
[1737768489087,6.95458776,3302.7,3302.6,7.95e-06]
[1737768489284,4.72554055,3302.7,3302.6,7.95e-06]
[1737768489484,5.38377064,3302.7,3302.6,7.95e-06]
[1737768493093,8.59157064,3302.7,3302.6,7.95e-06]
[1737768497991,8.94136105,3302.7,3302.6,7.95e-06]
[1737768502500,9.32571341,3302.7,3302.6,7.95e-06]
[1737768503093,0.48454,3302.2,3302.1,1.0667]
[1737768503296,6.03630093,3302.2,3302.1,1.0667]
[1737768503498,10.2849776,3302.2,3302.1,1.0667]
[1737768503699,10.2849776,3302.2,3302.1,0.82648762]
[1737768503901,10.63476801,3302.2,3302.1,0.82648762]
[1737768505507,10.63476801,3302.2,3302.1,0.19653762]
[1737768507200,10.25020977,3302.2,3302.1,0.19653762]
[1737768507893,9.90041936,3302.2,3302.1,0.19653762]
[1737768508097,6.85841936,3302.2,3302.1,0.19653762]
[1737768508297,9.20238029,3302.2,3302.1,0.19653762]
[1737768508498,9.68692029,3302.2,3302.1,0.19653762]
[1737768511001,2.82850093,3302.2,3302.1,0.19653762]
[1737768511207,1.30740093,3302.2,3302.1,0.19653762]
[1737768514414,5.20610351,3302.2,3302.1,0.19653762]
[1737768520120,0.48454,3302.2,3302.1,0.19653762]
[1737768522316,7.71465814,3302.2,3302.1,0.19653762]
[1737768522717,0.48456,3302.1,3302.0,1.0675]
[1737768523218,4.42529442,3302.1,3302.0,1.0675]
[1737768526715,4.42529442,3302.1,3302.0,2.0277]
[1737768527421,3.94073442,3302.1,3301.9,1.0882]
[1737768527619,3.94073442,3302.1,3301.8,0.00453795]
[1737768527820,6.03635093,3301.9,3301.8,0.00453795]
[1737768528223,9.95996359,3301.9,3301.8,0.00453795]
[1737768548733,3.69239,3301.9,3301.8,0.00453795]
[1737768549836,2.34396093,3302.2,3301.8,0.00453795]
[1737768550038,0.48458,3302.0,3301.8,0.00453795]
[1737768550236,0.00453795,3302.5,3301.8,0.00453795]
[1737768550237,2.34849888,3302.5,3301.8,0.00453795]
[1737768550433,2.34849888,3302.5,3302.0,3.2078]
[1737768550434,0.48453,3302.3,3302.0,3.2078]
[1737768550640,2.34849888,3302.5,3302.0,3.2078]
[1737768550831,0.48452,3302.4,3302.1,0.9731]
[1737768551032,2.34849888,3302.5,3302.1,0.9731]
[1737768551242,0.48452,3302.4,3302.1,0.9731]
[1737768551738,0.48454,3302.2,3302.1,0.9731]
[1737768551938,2.82850093,3302.2,3302.1,0.9731]
[1737768552334,0.48454,3302.3,3302.1,0.9731]
[1737768553046,0.48452,3302.4,3302.1,0.9731]
[1737768553237,2.34849888,3302.5,3302.1,0.9731]
[1737768553238,2.34849888,3302.5,3302.2,0.9274]
[1737768553431,2.83300888,3302.5,3302.2,0.9274]
[1737768553636,2.83300888,3302.5,3302.3,1.006]
[1737768554144,0.00453795,3302.5,3302.3,1.006]
[1737768554337,0.00453795,3302.5,3302.4,3.2078]
[1737768554542,0.48445,3302.9,3302.4,3.2078]
[1737768555735,0.48446,3302.8,3302.4,3.2078]
[1737768556742,0.48448,3302.7,3302.4,3.2078]
[1737768557044,0.48449,3302.6,3302.4,3.2078]
[1737768557644,2.34396093,3302.8,3302.4,3.2078]
[1737768557846,0.4845,3302.5,3302.4,3.2078]
[1737768558348,0.48452,3302.4,3302.3,1.006]
[1737768562143,5.55176093,3302.5,3301.8,0.00453795]
[1737768562338,0.48459,3301.9,3301.8,0.00453795]
[1737768567441,4.47312478,3301.9,3301.8,0.00453795]
[1737768567942,4.47312478,3301.9,3301.8,7.95e-06]
[1737768568248,4.52185948,3301.9,3301.8,7.95e-06]
[1737768568643,9.52186211,3301.9,3301.8,7.95e-06]
[1737768568844,9.87119161,3301.9,3301.8,7.95e-06]
[1737768569548,4.87119161,3301.9,3301.8,7.95e-06]
[1737768569849,5.1079089,3301.9,3301.8,7.95e-06]
[1737768570252,4.6233189,3301.9,3300.8,3.2078]
[1737768570445,0.48474,3300.9,3300.8,3.2078]
[1737768572647,0.48474,3300.9,3300.6,1.7893]
[1737768572855,2.34396093,3301.0,3300.6,1.7893]
[1737768573044,0.48475,3300.8,3300.6,1.7893]
[1737768573444,0.48476,3300.7,3300.6,1.7893]
[1737768574361,2.82872093,3300.7,3300.6,1.7893]
[1737768574854,2.82872093,3300.7,3300.5,0.00453795]
[1737768574855,0.48478,3300.6,3300.5,0.00453795]
[1737768575046,1.41458,3300.6,3300.5,0.00453795]
[1737768576349,5.32524093,3300.6,3300.5,0.00453795]
[1737768577854,5.32524093,3300.6,3300.5,1e-08]
[1737768579956,5.37399616,3300.6,3300.5,1e-08]
[1737768580158,5.32524093,3300.6,3300.5,1e-08]
[1737768582661,5.56741368,3300.6,3300.5,1e-08]
[1737768585278,5.32524093,3300.6,3300.5,1e-08]
[1737768590177,4.39544093,3300.6,3300.5,1e-08]
[1737768596588,4.39544093,3300.6,3300.1,0.9421]
[1737768596589,0.48484,3300.2,3300.1,0.9421]
[1737768596791,6.03660093,3300.2,3300.1,0.9421]
[1737768596990,9.91613832,3300.2,3300.1,0.9421]
[1737768597295,0.48483,3300.3,3300.1,1.864]
[1737768599590,0.48484,3300.2,3300.1,1.864]
[1737768600694,0.48482,3300.4,3300.1,1.864]
[1737768600882,0.48484,3300.3,3300.1,1.864]
[1737768601494,2.34396093,3300.5,3300.1,1.864]
[1737768601892,0.48484,3300.2,3300.1,1.864]
[1737768602093,2.82880093,3300.2,3300.1,1.864]
[1737768605195,3.2078,3300.3,3300.1,1.864]
[1737768605394,0.48484,3300.2,3300.1,1.864]
[1737768606095,3.2078,3300.3,3300.1,1.864]
[1737768606298,3.2078,3300.7,3300.1,5.0718]
[1737768606499,0.4848,3300.5,3300.1,5.0718]
[1737768606793,0.48481,3300.4,3300.1,5.0718]
[1737768607500,0.48484,3300.2,3300.1,5.0718]
[1737768607798,7.14986453,3300.7,3300.1,5.0718]
[1737768607995,0.48483,3300.3,3300.1,5.0718]
[1737768608795,7.14986453,3300.7,3300.1,5.0718]
[1737768608997,0.48484,3300.2,3300.1,5.0718]
[1737768617705,0.48483,3300.3,3300.1,5.0718]
[1737768617893,0.48484,3300.2,3300.1,5.0718]
[1737768618702,0.48484,3300.3,3300.1,5.0718]
[1737768618910,0.48484,3300.2,3300.1,5.0718]
[1737768619306,3.87897342,3300.4,3300.1,5.0718]
[1737768619307,0.48484,3300.3,3300.1,5.0718]
[1737768619708,0.48484,3300.2,3300.1,5.0718]
[1737768621896,0.882,3300.7,3300.1,5.0718]
[1737768622102,0.48482,3300.4,3300.1,5.0718]
[1737768623605,0.882,3300.7,3300.1,5.0718]
[1737768623813,3.2078,3300.9,3300.5,3.2078]
[1737768624012,3.2078,3300.9,3300.6,1.7768]
[1737768624207,0.00453795,3301.2,3300.7,0.8991]
[1737768624616,0.00453795,3301.2,3300.7,1.38386]
[1737768625215,0.48922795,3301.2,3300.7,1.38386]
[1737768625627,0.00453795,3301.2,3300.8,0.48475]
[1737768625922,0.48922795,3301.2,3300.7,1.38386]
[1737768626921,0.00453795,3301.2,3300.7,1.38386]
[1737768627724,0.48924795,3301.2,3300.7,0.8991]
[1737768628222,0.00453795,3301.2,3300.7,0.8991]
[1737768628530,0.00453795,3301.2,3300.7,1.38386]
[1737768628531,0.48923795,3301.2,3300.7,1.38386]
[1737768631822,0.48471,3301.1,3300.7,1.38386]
[1737768632219,0.00453795,3301.2,3300.9,3.2078]
[1737768632425,0.48462,3301.7,3301.1,2.82867093]
[1737768632728,3.2078,3302.1,3301.4,2.34396093]
[1737768633130,3.2078,3302.1,3301.8,0.48459]
[1737768633435,2.34396093,3302.6,3302.0,3.2078]
[1737768633724,0.00454496,3302.3,3302.0,3.2078]